bitfinex-derivatives/quotes_SOLF0:USTF0_20240911
["timestamp","ask_amount","ask_price","bid_price","bid_amount"]
[1726019942501,16.13,133.64,133.54,1.3098]
[1726019942698,17.4202,133.66,133.56,16.13]
[1726019942903,17.4202,133.66,133.57,1.3568]
[1726019944111,17.4202,133.66,133.57,5.0999]
[1726019944702,17.4202,133.66,133.57,1.3568]
[1726019946003,16.13,133.64,133.57,1.3568]
[1726019946219,16.13,133.64,133.54,1.3098]
[1726019946419,16.13,133.64,133.55,3.70312542]
[1726019946712,16.13,133.62,133.54,1.3098]
[1726019946908,15.0,133.55,133.35,3.27784187]
[1726019947216,31.13,133.55,133.44,16.13]
[1726019947513,16.13,133.55,133.43,2.7103]
[1726019947701,16.13,133.53,133.43,18.8403]
[1726019947905,3.7455,133.49,133.43,22.64546459]
[1726019948315,2.7851,133.54,133.36,1.4017]
[1726019948316,2.7851,133.54,133.41,16.13]
[1726019948612,16.13,133.53,133.43,16.13]
[1726019948815,2.7851,133.54,133.44,1.3703]
[1726019949009,16.13,133.53,133.44,4.0557]
[1726019950409,16.13,133.53,133.44,1.3703]
[1726019950805,16.13,133.53,133.44,5.117]
[1726019951005,16.13,133.53,133.44,1.3703]
[1726019951605,16.13,133.53,133.46,3.7462]
[1726019952419,16.13,133.53,133.44,1.3703]
[1726019952717,16.13,133.53,133.45,3.7462]
[1726019953319,16.13,133.53,133.44,1.3703]
[1726019954321,16.13,133.53,133.44,5.1169]
[1726019954618,16.13,133.51,133.44,1.3703]
[1726019955113,2.7851,133.54,133.44,1.3703]
[1726019955328,16.13,133.5,133.44,1.3703]
[1726019956323,16.13,133.5,133.38,16.13]
[1726019956623,16.13,133.5,133.41,3.7474]
[1726019956819,16.13,133.5,133.4,16.13]
[1726019957022,16.13,133.5,133.41,1.3771369]
[1726019957315,16.13,133.52,133.42,1.3771369]
[1726019957521,16.13,133.52,133.43,1.37713437]
[1726019957720,16.13,133.52,133.43,3.7468]
[1726019958118,16.13,133.52,133.42,16.13]
[1726019958320,16.13,133.52,133.43,1.37707147]
[1726019958517,16.13,133.52,133.42,16.13]
[1726019958715,16.13,133.52,133.43,1.37703139]
[1726019958716,16.13,133.48,133.43,1.37703139]
[1726019958922,16.13,133.46,133.37,3.71318631]
[1726019959620,16.13,133.46,133.35,19.8792]
[1726019959922,16.13,133.46,133.36,1.37782158]
[1726019960118,25.92,133.45,133.36,3.71168755]
[1726019960522,25.92,133.45,133.34,2.5721]
[1726019960720,25.92,133.45,133.36,3.749]
[1726019960920,25.92,133.45,133.36,7.54866497]
[1726019961116,25.92,133.45,133.36,3.749]
[1726019961725,25.92,133.45,133.37,1.37785699]
[1726019962026,25.92,133.45,133.36,7.48119534]
[1726019962224,2.6461,133.47,133.34,2.5721]
[1726019962225,25.92,133.43,133.34,1.2795]
[1726019962425,25.92,133.43,133.35,1.37787071]
[1726019962622,25.92,133.45,133.36,3.7488]
[1726019963626,25.92,133.45,133.34,6.27926187]
[1726019963926,25.92,133.45,133.35,1.37789367]
[1726019964126,25.92,133.45,133.36,1.37789367]
[1726019964323,25.92,133.45,133.35,3.7493]
[1726019965517,25.92,133.45,133.34,6.27926187]
[1726019965717,32.37138744,133.47,133.35,1.37800973]
[1726019965929,28.5661,133.47,133.36,1.3779026]
[1726019966132,28.5661,133.47,133.38,3.7483]
[1726019966321,2.6461,133.47,133.39,25.92]
[1726019966725,2.6461,133.47,133.4,1.37754107]
[1726019967026,2.6461,133.47,133.39,25.92]
[1726019967027,25.92,133.52,133.39,25.92]
[1726019967227,25.92,133.52,133.41,25.92]
[1726019967228,2.6375,133.51,133.41,25.92]
[1726019967424,2.6375,133.51,133.42,2.6671532]
[1726019967620,2.6375,133.51,133.42,1.2898]
[1726019968024,25.92,133.49,133.37,25.92]
[1726019968229,25.92,133.49,133.41,3.7474]
[1726019968531,25.92,133.49,133.4,3.75805617]
[1726019968828,25.92,133.49,133.39,25.92]
[1726019969027,25.92,133.49,133.4,5.11686287]
[1726019969224,25.92,133.49,133.4,3.73932022]
[1726019969421,25.92,133.49,133.39,25.92]
[1726019969422,25.92,133.49,133.39,29.62934271]
[1726019969623,2.6375,133.51,133.4,1.37750851]
[1726019969819,2.6375,133.51,133.39,29.62934271]
[1726019970020,2.6375,133.51,133.42,3.7471]
[1726019970527,2.6375,133.51,133.39,29.62934271]
[1726019970725,2.6375,133.51,133.4,1.37745128]
[1726019970927,2.6375,133.51,133.41,1.37745128]
[1726019971230,2.6375,133.51,133.43,3.7468]
[1726019972028,2.6375,133.51,133.44,3.7468]
[1726019972424,2.6375,133.51,133.39,29.62934271]
[1726019972728,2.6375,133.51,133.42,25.92]
[1726019973128,2.6375,133.51,133.44,3.7467]
[1726019973325,2.6375,133.51,133.42,25.92]
[1726019973530,2.6375,133.51,133.41,3.70025208]
[1726019973830,2.6375,133.51,133.43,3.747]
[1726019975535,2.6375,133.51,133.44,3.7467]
[1726019976242,2.6375,133.51,133.47,3.7459]
[1726019976735,2.6375,133.51,133.48,3.7455]
[1726019976935,2.6375,133.51,133.44,25.92]
[1726019977337,118.46737201,133.54,133.44,25.92]
[1726019977537,118.46737201,133.54,133.45,1.3077]
[1726019977738,118.46737201,133.54,133.48,3.7454]
[1726019978727,118.46737201,133.54,133.45,1.3077]
[1726019978927,118.46737201,133.54,133.46,1.37689767]
[1726019979133,118.46737201,133.54,133.45,1.3077]
[1726019979328,118.46737201,133.54,133.46,1.37689331]
[1726019979536,118.46737201,133.54,133.45,1.3077]
[1726019979736,118.46737201,133.54,133.46,1.37685343]
[1726019980036,118.46737201,133.54,133.48,3.7454]
[1726019980342,118.46737201,133.54,133.48,3.7455]
[1726019981343,118.46737201,133.54,133.45,1.3077]
[1726019981538,118.46737201,133.54,133.46,1.37684209]
[1726019981738,118.46737201,133.54,133.48,3.7455]
[1726019982338,118.46737201,133.54,133.49,3.7453]
[1726019982736,118.46737201,133.54,133.49,3.7452]
[1726019982948,118.46737201,133.54,133.46,16.2]
[1726019983438,118.46737201,133.54,133.49,3.7451]
[1726019983637,118.46737201,133.54,133.49,3.73529737]
[1726019983942,118.46737201,133.54,133.46,16.2]
[1726019984945,118.46737201,133.54,133.48,3.7455]
[1726019985143,118.46737201,133.54,133.48,7.42835637]
[1726019985447,118.46737201,133.54,133.49,3.7454]
[1726019985743,118.46737201,133.54,133.48,3.68285637]
[1726019985744,118.46737201,133.54,133.46,16.2]
[1726019986248,118.46737201,133.54,133.48,3.7455]
[1726019986441,118.46737201,133.54,133.48,7.46806169]
[1726019986634,2.7923,133.55,133.49,3.7454]
[1726019986841,2.7923,133.55,133.46,16.2]
[1726019987244,2.7923,133.55,133.49,3.7452]
[1726019987443,2.7923,133.55,133.48,3.82107585]
[1726019987752,16.2,133.54,133.45,1.3077]
[1726019988251,16.2,133.54,133.46,3.746]
[1726019990451,16.2,133.54,133.45,5.054]
[1726019990640,16.2,133.51,133.42,2.7551]
[1726019991042,16.2,133.51,133.4,17.5999]
[1726019991643,16.2,133.51,133.4,5.12910725]
[1726019991956,16.2,133.51,133.4,21.32910725]
[1726019992248,16.2,133.47,133.4,1.3999]
[1726019992449,16.2,133.47,133.36,2.7417]
[1726019992450,2.6357,133.46,133.38,3.73445227]
[1726019992652,2.6357,133.46,133.38,3.7484]
[1726019992864,2.6357,133.46,133.39,3.75842949]
[1726019993044,2.6357,133.46,133.37,1.3766]
[1726019993045,2.6357,133.46,133.37,17.5766]
[1726019993249,2.6357,133.46,133.37,1.3766]
[1726019993752,2.6357,133.46,133.39,3.7479]
[1726019993954,2.6357,133.46,133.37,1.3766]
[1726019994746,2.6357,133.46,133.37,5.1251]
[1726019995344,2.6357,133.46,133.37,1.3766]
[1726019995953,2.6357,133.46,133.38,3.7482]
[1726019996152,2.6357,133.46,133.37,1.3766]
[1726019996354,2.6357,133.46,133.38,16.2]
[1726019997058,2.6357,133.46,133.4,3.7477]
[1726019997255,2.6357,133.46,133.37,17.5766]
[1726019998054,2.6357,133.46,133.4,3.7477]
[1726019998360,16.2,133.49,133.39,16.2]
[1726019998860,16.2,133.49,133.41,3.7476]
[1726019999653,16.2,133.49,133.39,16.2]
[1726020000364,18.8366,133.51,133.39,16.2]
[1726020000558,18.8366,133.51,133.37,1.3766]
[1726020000559,18.8366,133.51,133.41,16.2]
[1726020000761,18.8366,133.51,133.42,3.7471]
[1726020000948,18.8366,133.51,133.41,16.2]
[1726020001352,18.8366,133.51,133.4,1.4014]
[1726020001353,16.2,133.49,133.4,1.4014]
[1726020001554,16.2,133.49,133.39,16.2]
[1726020001765,16.2,133.49,133.39,19.948]
[1726020001953,16.2,133.49,133.39,16.2]
[1726020002361,16.2,133.49,133.37,17.5766]
[1726020002563,16.2,133.47,133.37,17.5766]
[1726020002763,16.2,133.47,133.39,3.7481]
[1726020003357,16.2,133.47,133.38,3.7483]
[1726020004353,16.2,133.47,133.37,1.3766]
[1726020004553,16.2,133.44,133.37,1.3766]
[1726020005065,3.80986284,133.53,133.37,1.3766]
[1726020005066,2.6635,133.45,133.37,17.5766]
[1726020005463,16.2,133.5,133.39,16.2]
[1726020005660,1.2764,133.49,133.41,16.2]
[1726020006057,1.2764,133.49,133.43,3.7469]
[1726020006257,1.2764,133.49,133.42,3.6821857]
[1726020006450,1.3871,133.53,133.43,16.2]
[1726020006657,2.686,133.53,133.45,16.2]
[1726020007059,2.686,133.53,133.46,3.746]
[1726020008459,2.686,133.53,133.45,19.9464]
[1726020009457,2.686,133.53,133.46,3.7461]
[1726020009661,2.686,133.53,133.45,16.2]
[1726020010065,2.686,133.53,133.46,3.7461]
[1726020010266,2.686,133.53,133.45,16.2]
[1726020010560,16.2,133.52,133.44,3.9857]
[1726020010766,16.2,133.52,133.44,1.297]
[1726020011155,2.686,133.53,133.44,5.0436]
[1726020011353,2.686,133.53,133.44,1.297]
[1726020011558,2.686,133.53,133.45,16.2]
[1726020011755,2.686,133.53,133.47,3.7459]
[1726020011967,2.686,133.53,133.47,19.9459]
[1726020012466,2.686,133.53,133.47,16.2]
[1726020012766,16.2,133.58,133.47,16.2]
[1726020012969,16.2,133.56,133.45,16.2]
[1726020013657,16.2,133.56,133.46,2.6908]
[1726020014462,16.2,133.56,133.47,3.7459]
[1726020014661,1.3334,133.57,133.47,16.2]
[1726020014861,1.3334,133.57,133.49,3.7452]
[1726020015060,1.2946,133.59,133.46,2.6908]
[1726020015061,1.2946,133.59,133.51,16.2]
[1726020015464,1.2946,133.59,133.52,1.4099]
[1726020015867,17.6146,133.62,133.52,1.4099]
[1726020016061,17.6146,133.62,133.52,4.0046]
[1726020016267,17.6146,133.62,133.52,7.7489]
[1726020016468,17.6146,133.62,133.52,4.0046]
[1726020016970,17.6146,133.62,133.53,3.7442]
[1726020017171,17.6146,133.62,133.52,4.0046]
[1726020017366,16.2,133.59,133.52,4.0046]
[1726020017774,16.2,133.61,133.52,4.0046]
[1726020018069,16.2,133.61,133.53,3.744]
[1726020018269,16.2,133.61,133.52,4.0046]
[1726020018674,1.4146,133.62,133.52,4.0046]
[1726020018874,17.6146,133.62,133.52,4.0046]
[1726020019077,17.6146,133.62,133.53,3.7441]
[1726020019264,17.6146,133.62,133.52,4.0046]
[1726020019865,17.6146,133.62,133.53,3.7442]
[1726020020070,16.2,133.6,133.52,4.0046]
[1726020020970,16.2,133.6,133.52,1.4099]
[1726020021883,16.2,133.58,133.5,2.6066]
[1726020022070,1.4146,133.62,133.5,2.6066]
[1726020022071,1.4146,133.62,133.51,16.2]
[1726020022372,1.3983,133.61,133.51,17.578]
[1726020022574,16.2,133.6,133.51,5.1227]
[1726020022768,16.2,133.56,133.47,16.2]
[1726020023187,16.2,133.54,133.45,16.2]
[1726020023389,16.2,133.54,133.43,20.1846]
[1726020023792,16.2,133.54,133.47,3.7457]
[1726020023996,2.7483,133.55,133.47,16.2]
[1726020024188,2.7483,133.55,133.5,3.7449]
[1726020024688,2.7483,133.55,133.48,16.2]
[1726020025287,2.6276,133.62,133.51,16.2]
[1726020025488,2.6276,133.62,133.53,16.2]
[1726020026894,2.6276,133.62,133.53,17.4979]
[1726020027087,2.6276,133.62,133.56,3.7434]
[1726020027594,2.6276,133.62,133.53,17.4979]
[1726020027792,2.6276,133.62,133.56,16.2]
[1726020029093,2.6276,133.62,133.57,3.7431]
[1726020029996,2.6276,133.62,133.56,19.9433]
[1726020030198,2.6276,133.62,133.53,20.2639]
[1726020030393,224.0,133.7,133.53,20.2639]
[1726020030594,18.8264,133.69,133.59,3.7424]
[1726020031096,18.8264,133.69,133.58,16.2]
[1726020031300,16.2,133.67,133.58,16.2]
[1726020031486,2.6264,133.69,133.58,16.2]
[1726020031794,2.6264,133.69,133.59,16.2]
[1726020032000,2.6264,133.69,133.6,1.3729]
[1726020032494,2.6264,133.69,133.62,16.2]
[1726020033297,2.6264,133.69,133.63,3.7412]
[1726020033691,16.2,133.71,133.62,16.2]
[1726020033891,2.6659,133.76,133.66,16.2]
[1726020034100,16.2,133.75,133.64,16.2]
[1726020034301,2.6659,133.76,133.64,16.2]
[1726020034302,16.2,133.73,133.64,16.2]
[1726020035900,6.35125289,133.76,133.64,16.2]
[1726020035901,16.2,133.75,133.64,16.2]
[1726020036295,16.2,133.75,133.66,3.7405]
[1726020036802,7.81257308,133.83,133.68,16.2]
[1726020037005,17.5208,133.79,133.68,16.2]
[1726020037205,3.81846752,133.78,133.68,16.2]
[1726020037807,16.2,133.77,133.68,16.2]
[1726020038002,3.81846752,133.78,133.7,3.7395]
[1726020038198,17.5208,133.79,133.68,16.2]
[1726020038400,17.5208,133.79,133.67,1.3992]
[1726020038401,16.2,133.75,133.67,1.3992]
[1726020038606,16.2,133.73,133.67,1.3992]
[1726020038904,1.3113,133.74,133.67,1.3992]
[1726020039092,1.3113,133.74,133.68,3.7399]
[1726020040103,1.3113,133.74,133.67,1.3992]
[1726020040608,17.5113,133.74,133.63,16.2]
[1726020040906,1.3228,133.73,133.63,16.2]
[1726020041795,1.3228,133.73,133.66,16.2]
[1726020042002,16.2,133.71,133.61,1.303]
[1726020042212,19.92595973,133.71,133.61,1.303]
[1726020042404,16.2,133.69,133.61,1.303]
[1726020042703,16.2,133.72,133.61,1.303]
[1726020042907,3.7403,133.68,133.61,1.303]
[1726020043101,16.2,133.72,133.61,1.303]
[1726020043499,3.7404,133.67,133.61,1.303]
[1726020044211,1.3228,133.73,133.62,16.2]
[1726020045105,3.7402,133.68,133.62,16.2]
[1726020046814,1.3228,133.73,133.62,16.2]
[1726020047205,3.7396,133.7,133.62,16.2]
[1726020047401,1.3228,133.73,133.62,16.2]
[1726020047797,16.2,133.7,133.61,1.303]
[1726020048199,16.2,133.68,133.61,1.303]
[1726020048608,3.7417,133.62,133.61,1.303]
[1726020048807,16.2,133.66,133.56,16.2]
[1726020049005,3.7422,133.61,133.57,1.3467]
[1726020050206,3.7424,133.6,133.57,1.3467]
[1726020050407,1.3794,133.66,133.57,1.3467]
[1726020050808,3.7428,133.58,133.57,1.3467]
[1726020051208,25.88,133.64,133.57,1.3467]
[1726020051410,3.7425,133.6,133.57,1.3467]
[1726020051905,3.7421,133.61,133.57,1.3467]
[1726020052111,27.2594,133.66,133.57,1.3467]
[1726020052506,3.7428,133.58,133.57,1.3467]
[1726020052909,3.7428,133.58,133.5,25.88]
[1726020052910,25.88,133.62,133.37,238.09584242]
[1726020053111,3.7437,133.55,133.51,1.333]
[1726020053321,25.88,133.6,133.51,1.333]
[1726020053519,3.7436,133.56,133.51,1.333]
[1726020054014,249.88,133.62,133.51,1.333]
[1726020054212,25.88,133.62,133.51,1.333]
[1726020054414,25.88,133.64,133.52,25.88]
[1726020055218,27.2594,133.66,133.55,25.88]
[1726020055713,27.2594,133.66,133.56,2.7395]
[1726020056119,1.3794,133.66,133.57,25.88]
[1726020056612,1.3794,133.66,133.58,1.3543]
[1726020056817,1.3974,133.67,133.58,1.3543]
[1726020056818,1.3974,133.67,133.61,25.88]
[1726020057020,1.2961,133.71,133.61,25.88]
[1726020057517,25.88,133.69,133.58,1.3543]
[1726020058716,25.88,133.67,133.58,1.3543]
[1726020059216,25.88,133.67,133.58,5.097]
[1726020059816,25.88,133.67,133.58,1.3543]
[1726020060218,1.3185,133.66,133.58,1.3543]
[1726020061115,1.3167,133.65,133.58,1.3543]
[1726020061322,30.93172628,133.65,133.52,25.88]
[1726020061519,27.1967,133.65,133.53,1.3653]
[1726020061825,27.1967,133.65,133.55,25.88]
[1726020061826,1.3167,133.65,133.55,25.88]
[1726020062016,1.3167,133.65,133.57,25.88]
[1726020062218,1.3167,133.65,133.58,1.3565]
[1726020063814,121.9728972,133.72,133.58,1.3565]
[1726020064018,28.5749,133.71,133.59,28.5655]
[1726020064724,28.5749,133.71,133.6,3.77133233]
[1726020064927,2.6949,133.71,133.6,3.77133233]
[1726020065225,121.9728972,133.72,133.66,3.7404]
[1726020065226,118.31032419,133.72,133.66,3.7404]
[1726020065523,25.88,133.76,133.64,25.88]
[1726020065725,25.88,133.76,133.65,5.0184]
[1726020065926,25.88,133.74,133.65,1.2776]
[1726020066122,25.88,133.72,133.59,28.5655]
[1726020066315,25.88,133.69,133.61,1.2776]
[1726020067519,25.88,133.67,133.55,25.88]
[1726020067722,25.88,133.67,133.58,1.2776]
[1726020068620,25.88,133.65,133.54,1.306]
[1726020068821,25.88,133.65,133.55,1.331]
[1726020068822,2.6223,133.64,133.55,1.331]
[1726020072126,2.6223,133.64,133.55,27.211]
[1726020072523,25.88,133.67,133.55,27.211]
[1726020074320,25.88,133.69,133.58,25.88]
[1726020074524,25.88,133.69,133.59,3.69666117]
[1726020074823,25.88,133.69,133.55,1.331]
[1726020074824,2.7855,133.7,133.62,25.88]
[1726020075023,2.7855,133.7,133.63,1.2833]
[1726020075223,25.88,133.69,133.63,1.2833]
[1726020075816,2.7855,133.7,133.63,1.2833]
[1726020076329,25.88,133.69,133.63,1.2833]
[1726020078933,2.7855,133.7,133.63,1.2833]
[1726020079428,25.88,133.74,133.63,1.2833]
[1726020079732,2.6971,133.73,133.63,1.2833]
[1726020080232,27.00856688,133.84,133.63,1.2833]
[1726020080233,25.88,133.78,133.66,25.88]
[1726020080433,1.3304,133.77,133.66,25.88]
[1726020080633,1.3304,133.77,133.67,3.7402]
[1726020080827,1.3304,133.77,133.66,25.88]
[1726020081022,1.3304,133.77,133.69,3.7396]
[1726020081227,1.3304,133.77,133.67,1.3303]
[1726020082028,1.3304,133.77,133.7,3.7393]
[1726020082232,1.3304,133.77,133.69,25.88]
[1726020082426,1.3304,133.77,133.7,1.3612]
[1726020083024,1.3667,133.78,133.7,1.3612]
[1726020083223,1.3667,133.78,133.7,2.7462]
[1726020083632,1.3667,133.78,133.71,3.739]
[1726020084132,1.3667,133.78,133.7,2.7462]
[1726020084730,1.3667,133.78,133.7,6.4855]
[1726020086033,1.3667,133.78,133.71,3.739]
[1726020086226,1.3667,133.78,133.7,2.7462]
[1726020089539,27.2467,133.78,133.7,1.3612]
[1726020089741,1.3961,133.77,133.7,1.3612]
[1726020092142,25.88,133.76,133.63,25.88]
[1726020092444,3.76720526,133.75,133.63,25.88]
[1726020092950,25.88,133.76,133.65,25.88]
[1726020093136,25.88,133.76,133.65,29.56117893]
[1726020093440,25.88,133.76,133.67,3.7401]
[1726020093742,1.3961,133.77,133.65,29.56117893]
[1726020093938,1.3961,133.77,133.68,3.7398]
[1726020094839,1.3961,133.77,133.69,3.7397]
[1726020095035,1.3961,133.77,133.65,29.56117893]
[1726020095338,1.3961,133.77,133.69,3.7396]
[1726020095844,1.3961,133.77,133.65,29.56117893]
[1726020095845,1.3961,133.77,133.68,25.88]
[1726020096144,1.3961,133.77,133.69,1.4024]
[1726020097334,1.3961,133.77,133.69,5.1419]
[1726020097541,1.3961,133.77,133.69,1.4024]
[1726020098148,27.2761,133.77,133.69,1.4024]
[1726020098337,3.78469364,133.76,133.69,1.4024]
[1726020099647,3.78469364,133.76,133.63,25.88]
[1726020099848,3.78469364,133.76,133.64,2.6555]
[1726020100051,27.2761,133.77,133.67,3.7402]
[1726020100238,27.2761,133.77,133.66,29.57155382]
[1726020100438,27.2761,133.77,133.66,25.88]
[1726020101248,1.3667,133.78,133.66,25.88]
[1726020101453,1.3667,133.78,133.68,25.88]
[1726020102251,1.3667,133.78,133.69,3.7398]
[1726020102848,1.3667,133.78,133.7,1.2954]
[1726020104051,1.3667,133.78,133.71,3.739]
[1726020105253,1.3667,133.78,133.7,1.2954]
[1726020105254,1.3667,133.78,133.72,3.7387]
[1726020105450,1.3667,133.78,133.71,1.3402]
[1726020105853,1.3667,133.78,133.71,5.0794]
[1726020106148,1.3667,133.78,133.7,1.2954]
[1726020107256,1.3667,133.78,133.7,5.0347]
[1726020109463,1.3667,133.78,133.71,3.7391]
[1726020109658,1.3667,133.78,133.7,27.1754]
[1726020109862,1.3667,133.78,133.71,1.35]
[1726020110058,1.3667,133.78,133.72,3.7388]
[1726020110954,1.3667,133.78,133.71,5.0892]
[1726020111256,1.3667,133.78,133.7,1.2954]
[1726020113664,1.3667,133.78,133.7,5.0348]
[1726020114558,1.3667,133.78,133.71,3.7392]
[1726020115250,1.3667,133.78,133.7,1.2954]
[1726020115961,27.1918,133.81,133.7,1.2954]
[1726020116262,1.2961,133.8,133.7,1.2954]
[1726020116663,1.2961,133.8,133.72,3.7387]
[1726020119562,1.2961,133.8,133.7,1.2954]
[1726020119563,1.2961,133.8,133.73,3.7385]
[1726020119859,1.2961,133.8,133.7,1.2954]
[1726020120052,1.2961,133.8,133.71,16.16]
[1726020120258,1.2961,133.8,133.73,3.7386]
[1726020120659,1.2961,133.8,133.71,16.16]
[1726020120963,1.2961,133.8,133.72,3.7388]
[1726020121263,17.4561,133.8,133.7,1.2954]
[1726020121557,16.16,133.78,133.7,1.2954]
[1726020122160,17.4561,133.8,133.7,1.2954]
[1726020122561,17.4561,133.8,133.73,3.7386]
[1726020122859,1.2961,133.8,133.72,16.16]
[1726020123265,3.6467684,133.83,133.72,16.16]
[1726020123460,2.7399,133.85,133.76,16.16]
[1726020123661,2.7399,133.85,133.77,2.7921]
[1726020123863,2.7399,133.85,133.79,3.737]
[1726020124170,1.37,133.85,133.77,6.59818734]
[1726020124462,1.37,133.85,133.77,2.7921]
[1726020124665,16.16,133.83,133.77,1.3939]
[1726020127965,16.16,133.83,133.73,3.7385]
[1726020128157,1.37,133.85,133.73,1.3604]
[1726020128472,16.16,133.8,133.73,1.3604]
[1726020128660,1.3131,133.79,133.73,1.3604]
[1726020128860,16.16,133.78,133.73,1.3604]
[1726020130460,16.16,133.78,133.68,2.7759]
[1726020130665,16.16,133.76,133.68,2.6842]
[1726020131262,16.16,133.74,133.68,1.2815]
[1726020131464,1.3696,133.73,133.68,1.2815]
[1726020131663,1.3696,133.73,133.63,16.16]
[1726020131664,1.3696,133.73,133.63,19.9013]
[1726020131864,1.3696,133.73,133.64,1.301]
[1726020132967,16.16,133.72,133.64,1.301]
[1726020134164,17.4862,133.72,133.64,1.301]
[1726020134367,16.16,133.69,133.64,1.301]
[1726020134963,16.16,133.71,133.64,1.301]
[1726020135465,16.16,133.69,133.64,1.301]
[1726020135969,16.16,133.69,133.6,1.3335]
[1726020136272,16.16,133.67,133.6,2.6558]
[1726020136568,1.3804,133.66,133.6,2.6558]
[1726020136963,16.16,133.65,133.6,1.3223]
[1726020137158,16.16,133.65,133.56,2.7791]
[1726020137361,16.16,133.65,133.57,1.3223]
[1726020138070,31.08199167,133.66,133.57,1.3223]
[1726020140571,1.3804,133.66,133.57,1.3223]
[1726020141270,1.3804,133.66,133.58,3.7427]
[1726020141665,1.3804,133.66,133.57,1.3223]
[1726020141862,1.3804,133.66,133.6,3.7421]
[1726020142570,25.88,133.7,133.61,3.7419]
[1726020143378,25.88,133.7,133.58,25.88]
[1726020144077,25.88,133.7,133.59,3.7423]
[1726020144276,25.88,133.7,133.58,25.88]
[1726020145172,25.88,133.7,133.61,3.7419]
[1726020145374,25.88,133.7,133.58,25.88]
[1726020145579,25.88,133.7,133.61,3.7419]
[1726020146176,25.88,133.7,133.6,3.69910179]
[1726020146371,25.88,133.7,133.58,25.88]
[1726020146372,27.2722,133.7,133.58,25.88]
[1726020146575,27.2722,133.7,133.62,3.7416]
[1726020147285,25.88,133.68,133.57,1.3223]
[1726020148391,25.88,133.68,133.6,3.7422]
[1726020148982,25.88,133.68,133.59,3.7425]
[1726020149690,25.88,133.68,133.58,3.7427]
[1726020149890,1.3922,133.7,133.57,1.3223]
[1726020149891,25.88,133.66,133.57,1.3223]
[1726020150091,29.59472692,133.66,133.57,1.3223]
[1726020150389,1.3459,133.65,133.57,1.3223]
[1726020150785,1.3208,133.64,133.57,1.3223]
[1726020151188,1.3208,133.64,133.59,3.7423]
[1726020151392,1.3208,133.64,133.57,1.3223]
[1726020152889,27.2008,133.64,133.57,1.3223]
[1726020153089,25.88,133.62,133.5,3.82869547]
[1726020153391,25.88,133.62,133.51,2.6205]
[1726020154193,25.88,133.62,133.51,6.3651]
[1726020155301,25.88,133.62,133.52,3.7444]
[1726020156190,25.88,133.62,133.51,6.3652]
[1726020156402,25.88,133.62,133.51,2.6205]
[1726020156892,25.88,133.62,133.51,6.3652]
[1726020157098,25.88,133.62,133.51,2.6205]
[1726020157484,27.2008,133.64,133.51,28.5005]
[1726020158089,16.18,133.63,133.53,16.18]
[1726020158490,16.18,133.63,133.56,3.7432]